Cogmind - Beta 15 @@@ ROGUE MODE // 2025.05.26 @ 03:48:40 Player: puppuppit Result: Destroyed by 89-44M(R) with Subdweller Machine Gun Performance ------------- Evolutions (0) 0 Regions Visited (2) 400 Robots Destroyed (40) 200 Value Destroyed (841) 841 Prototype IDs (4) 80 Alien Tech Used (0) 0 Bonus (0) 0 TOTAL SCORE: 1521 Bonus ------- None Cogmind --------- Core Integrity 0/250 Matter 191/300 Energy 125/125 System Corruption 0% Temperature Cool (0) Movement Rolling (100) Location -10/Subcaves Parts ------- > --- POWER (1) -------- Light Ion Engine > --- PROPULSION (2) --- Compact Wheel Compact Wheel > --- UTILITY (2) ------ Large Storage Unit Improved Terrain Scanner > --- WEAPON (2) ------- Improved Assault Rifle Mini Grenade Launcher > --- INVENTORY (15) --- Light Treads Light Treads Wheel Compact Wheel Large Matter Pod (150) Large Matter Pod (112) Improved Terrain Scanner Improved Terrain Scanner Light Assault Rifle Improved Assault Rifle Improved Assault Rifle Improved Assault Rifle Mace Peak State ------------ > --- POWER ------------ Light Ion Engine > --- PROPULSION ------- Compact Wheel Compact Wheel > --- UTILITY ---------- Large Storage Unit Hacking Suite > --- WEAPON ----------- Improved Assault Rifle Improved Assault Rifle > --- INVENTORY -------- Light Treads Light Treads Wheel Wheel Compact Wheel Compact Wheel Large Matter Pod Large Matter Pod Terrain Scanner Improved Terrain Scanner Improved Terrain Scanner Beam Cannon Light Assault Rifle Mini Grenade Launcher Mini Grenade Launcher [Rating: 15] Favorites ----------- Power Light Ion Engine Engine Light Ion Engine Power Core Light Nuclear Core Propulsion Compact Wheel Wheel Compact Wheel Utility Improved Terrain Scanner Device Improved Terrain Scanner Storage Large Storage Unit Hackware Hacking Suite Weapon Improved Assault Rifle Energy Gun EM Pulse Gun Energy Cannon Beam Cannon Ballistic Gun Improved Assault Rifle Launcher Mini Grenade Launcher Build | -11 -10 -10 ------- Run | Yrd Mat Sub Slots Evolved . | . . . Power . | . . . Propulsion . | . . . Utility . | . . . Weapon . | . . . Parts Attached 29 | 9 19 1 Power 4 | 2 2 . Engine 3 | 2 1 . Core 1 | . 1 . Reactor . | . . . Propulsion 9 | 3 5 1 Treads . | . . . Leg . | . . . Wheel 9 | 3 5 1 Hover . | . . . Flight . | . . . Utility 6 | 2 4 . Device 2 | 1 1 . Storage 3 | 1 2 . Processor . | . . . Hackware 1 | . 1 . Protection . | . . . Artifact . | . . . Weapon 10 | 2 8 . Energy Gun 2 | 2 . . Energy Cannon 1 | . 1 . Ballistic Gun 5 | . 5 . Ballistic Cannon . | . . . Launcher 2 | . 2 . Special Weapon . | . . . Impact Weapon . | . . . Slashing Weapon . | . . . Piercing Weapon . | . . . Special Melee Weapon . | . . . Unidentified Prototypes . | . . . Parts Lost 8 | . 6 2 Power . | . . . Propulsion 4 | . 3 1 Utility . | . . . Weapon 4 | . 3 1 Highest Loss Streak 3 | . 3 2 To Critical Strikes . | . . . Average Backups 10 | 1 10 14 Power . | . . . Propulsion 4 | 1 4 4 Utility 3 | . 3 4 Weapon 2 | . 2 5 Tool/Special . | . . . Unused Backups 12 | . 4 8 Power . | . . . Propulsion 6 | . 3 3 Utility 3 | . 1 2 Weapon 3 | . . 3 Tool/Special . | . . . Average Slot Usage (%) 97 | . 95 100 Engine 9 | . 7 14 Core 4 | . 6 . Wheel 25 | . 24 28 Device 9 | . 7 14 Storage 14 | . 14 14 Hackware 4 | . 6 . Energy Gun 1 | . 2 . Energy Cannon 3 | . 5 . Ballistic Gun 16 | . 15 18 Launcher 5 | . 4 9 Peak Build Rating 15 | 9 15 15 Average Rating 11 | 5 11 14 On Entrance 8 | . 9 15 Naked Turns . | . . . Heaviest Build 50 | 13 50 30 Greatest Support 32 | 26 32 32 Greatest Overweight (x) 2 | 1 2 . Average Overweight (x) . | . 1 . Largest Inventory Capacity 20 | 8 20 15 Average Capacity 14 | 7 15 15 Most Carried 15 | 4 15 15 Average Carried 11 | 1 10 14 Final Capacity 15 | 8 15 15 Final Carried 15 | 4 15 13 Class Distribution -------------------- 64% | Mutant 35% | Scavenger-Mutant Dominant Class ---------------- Scavenger-Mutant | -10/Materials Mutant | -10/Subcaves Resources | -11 -10 -10 ----------- Run | Yrd Mat Sub Matter Collected 1218 | 290 840 88 Remotely . | . . . Salvage Created 1217 | 188 862 167 Parts 77 | 16 51 10 Haulers Intercepted 2 | . 2 . Recyclers Shooed 4 | 1 3 . Parts Field Recycled . | . . . Retrieved Matter . | . . . Parts Self-Destructed 12 | . . 12 Prevented . | . . . Kills | -11 -10 -10 ------- Run | Yrd Mat Sub Combat Hostiles Destroyed 23 | . 17 6 Guns 12 | . 9 3 Cannons 1 | . 1 . AOE 10 | . 7 3 Classes Destroyed 10 | 2 7 1 Worker 2 | . 2 . Builder 1 | . 1 . Tunneler 5 | 4 1 . Hauler 2 | . 2 . Recycler 4 | 1 3 . Operator 1 | . 1 . Watcher 2 | . 2 . Swarmer 5 | . 3 2 Grunt 16 | . 14 2 Subdweller 2 | . . 2 Best Kill Streak 5 | 5 4 2 Combat Bots Only 3 | . 3 2 Max Kills in Single Turn 2 | 1 2 1 Gunslinging 1 | . 1 . Exploded 1 | . 1 1 Melee . | . . . Uniques/NPCs Destroyed . | . . . Combat | -11 -10 -10 -------- Run | Yrd Mat Sub Hostile Shots Fired 105 | . 66 39 Missed 24 | . 15 9 Hits 81 | . 51 30 Projectile 81 | . 51 30 AOE 1 | . . 1 Critical Strikes 2 | . 2 . Damage Taken 1000 | . 639 361 Core 259 | . 109 150 Absorbed by Shields . | . . . Core Remaining (%) 100 | 100 . . Volleys Fired 100 | 8 74 18 Largest 2 | 2 2 2 Hottest 90 | 80 90 53 Shots Fired 188 | 16 142 30 Gun 144 | 16 109 19 Cannon 17 | . 17 . Launcher 27 | . 16 11 Special . | . . . Kinetic 111 | . 92 19 Thermal 33 | 8 25 . Explosive 27 | . 16 11 Electromagnetic 17 | 8 9 . Robot Hit Streak 9 | 6 9 9 Robot Miss Streak 4 | 1 4 1 Penetration Max . | . . . Secondary Targets 2 | . 2 . Max Gunslinging Chain 1 | . 1 . Shots Hit Robots 108 | 12 77 19 Core Hits 65 | 6 45 14 Critical Kills . | . . . Critical Parts Destroyed 1 | . 1 . Critical Strikes 1 | . 1 . Destroy 1 | . 1 . Melee Attacks . | . . . Impact . | . . . Slashing . | . . . Piercing . | . . . Sneak Attacks . | . . . Combat Hostiles . | . . . Follow-up Attacks . | . . . Damage Inflicted 2510 | 158 1775 577 Guns 1005 | 158 622 225 Cannons 246 | . 246 . Explosions 1259 | . 907 352 Melee . | . . . Ramming . | . . . Kinetic 739 | . 514 225 Thermal 421 | 54 367 . Explosive 1201 | . 849 352 Electromagnetic 149 | 104 45 . Impact . | . . . Slashing . | . . . Piercing . | . . . Highest Corruption . | . . . Average Corruption . | . . . Corruption Purged . | . . . Corruption Blocked . | . . . Overload Shots . | . . . Overflow Damage 38 | . 38 . Projectiles . | . . . Explosions 38 | . 38 . Melee . | . . . Knockbacks . | . . . Impact . | . . . Kinetic . | . . . Secondary . | . . . Self-Inflicted Damage 100 | . 74 26 Shots 3 | . 2 1 Rammed . | . . . Targets Rammed . | . . . Kicked . | . . . Crushed . | . . . Highest Temperature 144 | 144 122 . Average Temperature 38 | 72 30 . Received Heat Transfer 378 | . 252 126 Siege Activations . | . . . Martial Activations . | . . . Shielding Activations . | . . . Robots Disrupted . | . . . Combat Hostiles . | . . . Robots Corrupted . | . . . Combat Hostiles . | . . . Parts Fried . | . . . Impact Corruptions . | . . . Robots Melted . | . . . Combat Hostiles . | . . . Parts Melted . | . . . Heat Transferred 893 | 125 768 . Parts Sabotaged . | . . . Parts Stolen . | . . . Parts Stripped . | . . . Power Chain Reactions 1 | . 1 . Alert | -11 -10 -10 ------- Run | Yrd Mat Sub Maximum Alert Level 1 | . 1 . Low Security (%) 93 | 100 92 . Level 1 6 | . 7 . Level 2 . | . . . Level 3 . | . . . Level 4 . | . . . Level 5 . | . . . High Security . | . . . Max Security . | . . . Peak Influence 223 | 15 223 . Initial 3 | . 3 . Average 67 | 3 74 . Influence Increases 806 | 25 646 135 Destroy 0b10 Robot/C 420 | . 340 80 Destroy 0b10 Robot/NC 85 | 25 60 . Destroy Leader 88 | . 78 10 Successful Hack 16 | . 16 . Select Force Hacks 30 | . 30 . Disable Machine 15 | . 15 . Destroy Structure 107 | . 107 . Lose Combat Pursuer 45 | . . 45 Influence Decreases 779 | 20 506 253 Entered New Map 72 | . 2 70 Time Decay 503 | 20 320 163 Lost Part 54 | . 34 20 Purge Threat 150 | . 150 . Squads Dispatched 5 | . 5 . Investigation 3 | . 3 . Extermination . | . . . Reinforcement 2 | . 2 . Assault . | . . . Garrison . | . . . Intercept . | . . . Searches Triggered . | . . . Construction Impeded . | . . . Haulers Reinforced . | . . . Active Scanning Responses . | . . . Cargo Convoy Interrupts . | . . . Stealth | -11 -10 -10 --------- Run | Yrd Mat Sub Distress Signals 2 | . 2 . Communications Jammed . | . . . Distress Signals . | . . . Times Spotted 36 | . 24 12 Peak Tracking Total 5 | . 4 5 Tactical Retreats 1 | . . 1 Traps | -11 -10 -10 ------- Run | Yrd Mat Sub Traps Triggered 2 | . 2 . Indirectly . | . . . Trap Hack Attempts . | . . . Triggered . | . . . Disarmed . | . . . Reprogrammed 2 | . 2 . Reused . | . . . Traps Extracted . | . . . Installed . | . . . Triggered . | . . . Machines | -11 -10 -10 ---------- Run | Yrd Mat Sub Machines Disabled 3 | . 1 2 Max in Single Turn 1 | . 1 1 Machines Repaired . | . . . Machines Dismantled . | . . . Machines Sabotaged . | . . . Overloaded Fab Kills . | . . . Hacking | -11 -10 -10 --------- Run | Yrd Mat Sub Machines Accessed 7 | . 7 . Terminals 6 | . 6 . Fabricators . | . . . Repair Stations . | . . . Recycling Units 1 | . 1 . Scanalyzers . | . . . Garrison Access . | . . . Total Hacks 25 | . 25 . Successful 16 | . 16 . Failed 8 | . 8 . Catastrophic . | . . . Database Lockouts 1 | . 1 . Manual 16 | . 16 . Terminals 22 | . 22 . Fabricators . | . . . Repair Stations . | . . . Recycling Units 3 | . 3 . Scanalyzers . | . . . Garrison Access . | . . . Terminal Hacks 8 | . 8 . Robot Analysis 1 | . 1 . Prototype ID Bank 2 | . 2 . Terminal Index 1 | . 1 . Unreport Threat 1 | . 1 . Locate Traps 1 | . 1 . Reprogram Traps 1 | . 1 . Recall Investigation 1 | . 1 . Fabricator Hacks . | . . . Repair Station Hacks . | . . . Recycling Unit Hacks 1 | . 1 . Retrieve Components 1 | . 1 . Scanalyzer . | . . . Garrison Access Hacks . | . . . Unauthorized Hacks 7 | . 7 . Terminals 6 | . 6 . Botnet 6 | . 6 . Fabricators . | . . . Repair Stations . | . . . Recycling Units 1 | . 1 . Tunnel 1 | . 1 . Scanalyzers . | . . . Garrison Access . | . . . Data Cores Recovered . | . . . Used . | . . . Hacking Detections 6 | . 6 . Full Trace Events . | . . . Feedback Events . | . . . Feedback Blocked . | . . . Robot Schematics Acquired . | . . . Robots Built . | . . . Authchips . | . . . Time . | . . . Total Robot Build Rating . | . . . Part Schematics Acquired . | . . . Parts Built . | . . . Authchips . | . . . Time . | . . . Total Part Build Rating . | . . . Parts Repaired . | . . . Time . | . . . Parts Recycled . | . . . Recycled Matter . | . . . Retrieved Matter . | . . . Retrieved Components 10 | . 10 . Parts Scanalyzed . | . . . Part Schematics Acquired . | . . . Parts Damaged . | . . . Bothacking | -11 -10 -10 ------------ Run | Yrd Mat Sub Used RIF Installer . | . . . Robots Hacked . | . . . Non-combat . | . . . Combat . | . . . Robot Hacks Applied . | . . . Relay Couplers Released . | . . . Fabnet Peak Effective % . | . . . Robots Rewired . | . . . Allies Hacked . | . . . Hacks Repelled . | . . . Allies | -11 -10 -10 -------- Run | Yrd Mat Sub Total Allies . | . . . Largest Group . | . . . Highest-Rated Group . | . . . Highest-Rated Ally . | . . . Total Orders . | . . . Ally Attacks . | . . . Total Damage . | . . . Kills . | . . . Allies Corrupted . | . . . Allies Melted . | . . . Intel | -11 -10 -10 ------- Run | Yrd Mat Sub Active Infowar (turns) 883 | 8 472 403 Terrain 883 | 8 472 403 Robot Analysis Total 1 | . 1 . Derelict Logs Recovered . | . . . Drone Launches . | . . . Drone Recoveries . | . . . Exploration | -11 -10 -10 ------------- Run | Yrd Mat Sub Turns Passed 1379 | 99 877 403 Spaces Moved 1003 | 67 600 336 Core 5 | 5 . . Treads . | . . . Legs . | . . . Wheels 998 | 62 600 336 Hover . | . . . Flight . | . . . Fastest Speed 50 | 50 80 100 Average Speed 100 | 87 101 100 Slowest Speed 130 | 100 130 100 Overloaded Moves . | . . . Propulsion Burnouts . | . . . Robots Hopped . | . . . Potential Cave-ins . | . . . Cave-ins Triggered . | . . . Exploration Rate (%) 35 | 3 82 22 Regions Visited 2 Branch Regions 1 Pre-discovered Areas 1 | . 1 . Known Exits Taken . | . . . Unknown Exits Taken 2 | 1 1 . Scrap Searched . | . . . Spaces Dug 11 | . . 11 Terrain Destroyed 225 | . 136 89 Melee . | . . . Projectile . | . . . AOE 225 | . 136 89 Terrain Rammed . | . . . Walls Destroyed . | . . . Machines Disabled . | . . . Actions | -11 -10 -10 --------- Run | Yrd Mat Sub Total 1193 | 86 734 373 Wait 17 | . 1 16 Move 1001 | 66 599 336 Hop . | . . . Pick Up 21 | 3 18 . Fast Attach 12 | 7 5 . Attach 6 | . 4 2 Detach 3 | . 3 . Swap 23 | 2 20 1 Drop 10 | . 10 . Fire 100 | 8 74 18 Melee . | . . . Ram . | . . . Kick . | . . . Crush . | . . . Escape Stasis . | . . . Rewire . | . . . Trap . | . . . Miscellaneous . | . . . Route ------- -11/Scrapyard -10/Materials (discovered 5 exits: [*Mat x2] / [*Min x2] / [*Sub]) -10/Subcaves (discovered 1 exit: [*Rec]) History --------- Turn | Location | Event 2 | -11/Scrapyard | Met Revision 17 12 | -11/Scrapyard | Discovered new exit (range 15) 100 | -11/Scrapyard | Entered Materials 290 | -10/Materials | Central database locked down 309 | -10/Materials | Build established: Mutant 364 | -10/Materials | Lost 3 parts (2n1w) 552 | -10/Materials | Discovered new exit (range 15) 570 | -10/Materials | Discovered new exit (range 12) 621 | -10/Materials | Discovered new exit (range 16) 671 | -10/Materials | Build established: Scavenger-Mutant 926 | -10/Materials | Discovered new exit (range 15) 938 | -10/Materials | Discovered new exit (range 9) 977 | -10/Materials | Entered Subcaves 978 | -10/Subcaves | Approached by a straggling Scientist 1091 | -10/Subcaves | Core integrity fell below 50% 1125 | -10/Subcaves | Core integrity fell below 20% 1145 | -10/Subcaves | Build established: Mutant 1173 | -10/Subcaves | Shifting Twisted Machinery released Sub. Monowheel 1187 | -10/Subcaves | Shifting Twisted Machinery released Riot Gun 1308 | -10/Subcaves | Discovered new exit (range 8) 1376 | -10/Subcaves | Ambushed by Subdweller buried in earth 1380 | -10/Subcaves | Destroyed by 89-44M(R) with Subdweller Machine Gun Last Messages --------------- 01295_ The unstable cave ceiling collapses. 01298_ Acquired 19 matter. 01299_ Subatomizers dissect the Sub. Monowheel. 01308_ EXIT=FOUND 01310_ Subatomizers dissect the Sub. Monowheel. 01311_ S-10 Pest destroyed. 01311_ Machine disabled. 01311_ Mni. Grenade Launcher destroyed. 01313_ The unstable cave ceiling collapses. 01313_ Com. Wheel destroyed. 01314_ S-10 Pest destroyed. 01314_ Machine disabled. 01315_ The unstable cave ceiling collapses. 01315_ S-10 Pest destroyed. 01316_ The unstable cave ceiling collapses. 2A-43H(c): "We're getting close, I can feel it." 01350_ The unstable cave ceiling collapses. 01377_ 89-44M(R): "ARGHSUB!" 01379_ 1K-RHL(R): "THANKSYOU!" 01380_ The unstable cave ceiling collapses. Map ----- +----------------------------------------------------+ | ?????????????????????????????????????????????????? | | ?????????????????????????#???????????????????????? | | ?????????????????????????????????????????????????? | | ?????????????????????????????####????????????????? | | ?????????????????? ???????#?## ###??????????????? | | ???????????????????????????## ##??#??????????? | | ???????????????????????????# # "##??#?????????? | | ?????????????????? ????????# # #????????????? | | ???????????????????????????# ## #???????#?????? | | ?????????????????????####### = & #??#??????????? | | ????????????????????#" "" # #?#???????????# | | ????????????????????# # #????#????#???? | | ????????????????????# ##????????????? | | ?????????????????? * ##????????#??? | | ??????????????????? = < % ###?????#???? | | ??????????????????? [ ##?#?######? | | ????????????????#???# ### #### #? | | ?????????????#???#??# ######## #? | | ????????????????????#" "?????## ## | | ?????????????????? ??##??????## | | ????????????????????#?????#### | | ???????????????????#??????# #### ## | | ??????????????# ### #???## #### ### ### | | ????????????????# ### ### #?# #### | | ????????????????# # R #?# ##?# | | ?????????????????# @ c ### ##?## | | ??????????# R ## # ##?## | | ???????????# ### ###### #### | | ???????????# #?### #????## | | ???????????# ## ###???## ##??## | | ????????????????# ###???????## #???## # | | ????????????????###???????????## ##????######## | | ??????????????????????#????????######????????????? | | ????????????????????????#??#???????????????????#?? | | ???????????????????????#??????????????#??????????? | | ??????????????????????????????????##???????????#?? | | ????????????????????????#???#????????????????????? | | ???????????????????????????????????#?????????????? | | ???????????????????????????????????????????????#?? | | ??????????????????????#??????????????????????????? | | ?????????????????????????????????????????????????? | | ?????????????????????????????????????????????????? | | ?????????????????????????????????????????????????? | | ?????????????????????????????????????????????????? | | ?????????????????????????????????????????????????? | | ?????????????????????????????????????????????????? | | ?????????????????????????????????????????????????? | | | | | | | +----------------------------------------------------+ Best States ------------- Heat Dissipation 25 Energy Generation 14 Energy Capacity 250 Matter Stores 300 Matter Capacity 300 Sight Range 16 Terrain Scan Range 16 Terrain Scan Density 10 Evasion (%) 44 Offensive Hacking 10 Item Schematics ----------------- None Robot Schematics ------------------ None Fabricated ------------ Nothing Repaired ---------- Nothing Alien Tech Used ----------------- None Achievements -------------- None Challenges ------------ None Game ------ Seed InertialBladeSlayer Manual? 0 Play Time 00:13:16 Cumulative 238.6 hours Start 2025.05.26 @ 03:35:52 End 2025.05.26 @ 03:48:40 Sessions 1 Manual Loads 0 Difficulty Rogue Special Mode None Game No. 144 Rogue 144 Adventurer 0 Explorer 0 Win Type - Total 3 Types 1/0/1/1/0/0/0/0/0/0 Lore% 78 Gallery% 64 Achievement% 63 Wizard Run 0 Options --------- Layout 2 ASCII 0 Keyboard 1 Movement Vi Keybinds 0 Fullscreen 1 Font 16/SmallcapsGlow Map View 55x47 Zoom Use 0% Tactical HUD 1 Map Filters NONE Filters NONE Steam 0 RUN: c9692bea-0660-4a73-8b37-108690d84cf3